Cogmind - Beta 11 @@@ ROGUE MODE // 2022.04.18 @ 16:00:40 Player: Coronach Result: Destroyed by G-73 Enforcer with Phase Gun Performance ------------- Evolutions (8) 4000 Regions Visited (22) 4400 Robots Destroyed (283) 1415 Value Destroyed (15890) 15890 Prototype IDs (47) 940 Alien Tech Used (2) 400 Bonus (11862) 11862 TOTAL SCORE: 38907 Bonus ------- High Alert Combat Kills 5604 Follower Combat Kills 3713 Entered Garrisons 600 Used RIF Installer 1500 Entered DSFs 500 Met Zhirov 300 Friendly Fire -355 Cogmind --------- Core Integrity 0/1450 Matter 300/300 Energy 100/100 System Corruption 15% Temperature Cool (0) Movement Core (50) Location -2/Research Parts ------- > --- POWER (2) -------- (None) > --- PROPULSION (4) --- (None) > --- UTILITY (14) ----- Advanced Signal Interpreter Advanced Target Analyzer Improved Hacking Suite Relay Coupler [Grunt] (2) > --- WEAPON (3) ------- (None) > --- INVENTORY (5) ---- System Purifier Advanced Remote Datajack Peak State ------------ > --- POWER ------------ Light Quantum Reactor Light Quantum Reactor > --- PROPULSION ------- Myomer Leg Myomer Leg Myomer Leg Myomer Leg > --- UTILITY ---------- Advanced Heat Sink Advanced Coolant Injector Large Storage Unit Advanced Target Analyzer Experimental Transmission Jammer Improved Core Shielding Graphene Brace Experimental Force Field Improved Hacking Suite Improved Hacking Suite Relay Coupler [Cutter] Relay Coupler [Grunt] Relay Coupler [Hunter] System Purifier > --- WEAPON ----------- Advanced Variable Charge Gun Quantum Rifle Enhanced Quantum Rifle > --- INVENTORY -------- Light Quantum Reactor Advanced Heavy Siege Treads Compact Wheel Compact Wheel Experimental Energy Well Improved Matter Compressor Graphene Brace Phase Gun Nova Cannon Improved Remote Datajack Advanced Remote Datajack Molecular Scythe [Rating: 161] Favorites ----------- Power Neutrino Core Engine Heavy Ion Engine Power Core Neutrino Core Reactor Light Antimatter Reactor Propulsion Improved Treads Treads Improved Treads Leg Flexi-carbon Leg Wheel Centrium Wheel Hover Unit Improved Antigrav System Flight Unit Cooled VTOL Module Utility Enhanced Optical Array Device Graphene Brace Storage Large Storage Unit Processor Enhanced Optical Array Hackware Improved Hacking Suite Protection Improved Medium Armor Plating Weapon Nova Cannon Energy Gun Enhanced Quantum Rifle Energy Cannon Nova Cannon Ballistic Gun Improved Heavy Machine Gun Ballistic Cannon Hypervelocity Mass Driver Launcher Tesla Bomb Launcher Special Weapon Improved Remote Datajack Slashing Weapon Katana Piercing Weapon Enhanced Force Lance Special Melee Weapon Advanced Datajack Build | -11 -10 -9 -9 -8 -7 -6 -6 -5 -5 -5 -5 -5 -5 -5 -5 -4 -4 -4 -4 -4 -3 -2 ------- Run | Scr Mat Mat Sto Mat Fac Fac DSF Fac Was Fac Gar Fac Upp Upp Zhi Pro Fac Gar Fac Gar Res Res Slots Evolved 16 | . . 2 . 2 2 2 . 2 . . . . . . . . 2 . . . 2 2 Power 1 | . . . . . 1 . . . . . . . . . . . . . . . . . Propulsion 2 | . . . . . 1 . . 1 . . . . . . . . . . . . . . Utility 12 | . . 2 . 2 . 2 . 1 . . . . . . . . 1 . . . 2 2 Weapon 1 | . . . . . . . . . . . . . . . . . 1 . . . . . Parts Attached 570 | 4 7 8 30 56 12 4 3 12 13 . 44 9 2 12 12 13 22 40 69 43 7 148 Power 55 | 1 1 1 2 4 2 . . 2 1 . 3 1 . . 2 . 2 5 6 6 . 16 Engine 8 | 1 1 . 1 2 . . . 2 . . 1 . . . . . . . . . . . Core 16 | . . 1 1 2 2 . . . . . 2 1 . . 1 . 2 1 1 2 . . Reactor 31 | . . . . . . . . . 1 . . . . . 1 . . 4 5 4 . 16 Propulsion 109 | 2 2 . 6 15 2 1 . 5 2 . 9 . . 1 2 1 7 5 6 10 . 33 Treads 34 | . . . 4 8 . . . . 2 . 4 . . . . 1 2 2 4 3 . 4 Leg 29 | . 2 . 1 1 . . . . . . 5 . . . . . . 2 . 5 . 13 Wheel 30 | 2 . . . 5 . . . . . . . . . 1 . . 5 1 2 2 . 12 Hover 8 | . . . . . . . . 4 . . . . . . . . . . . . . 4 Flight 8 | . . . 1 1 2 1 . 1 . . . . . . 2 . . . . . . . Utility 210 | . 2 5 6 17 6 3 1 4 5 . 16 6 1 7 6 4 7 9 26 15 4 60 Device 125 | . 2 5 2 5 4 1 1 2 1 . 5 5 1 6 1 4 2 8 15 9 . 46 Storage 12 | . . . 1 3 . 1 . . 1 . 1 . . . 2 . 1 . 1 . 1 . Processor 20 | . . . 2 3 2 1 . 2 . . 2 1 . . . . 2 . 1 . . 4 Hackware 20 | . . . . 1 . . . . . . . . . . . . 1 . 7 3 3 5 Protection 33 | . . . 1 5 . . . . 3 . 8 . . 1 3 . 1 1 2 3 . 5 Artifact . | . . . . . . . . . . . . . . . . . . . . . . . Weapon 196 | 1 2 2 16 20 2 . 2 1 5 . 16 2 1 4 2 8 6 21 31 12 3 39 Energy Gun 42 | . 2 2 9 4 1 . . . 1 . 3 . . . . . . 5 . . . 15 Energy Cannon 29 | . . . . . . . . . 1 . 4 1 1 1 1 4 1 3 . 5 1 6 Ballistic Gun 26 | 1 . . 5 9 . . . . . . 4 . . . . . . 3 2 . . 2 Ballistic Cannon 40 | . . . . . . . . . 2 . 5 1 . 3 1 4 1 4 15 4 . . Launcher 16 | . . . 2 6 . . . . . . . . . . . . 1 5 2 . . . Special Weapon 28 | . . . . . 1 . . . . . . . . . . . 3 1 12 1 . 10 Impact Weapon . | . . . . . . . . . . . . . . . . . . . . . . . Slashing Weapon 8 | . . . . 1 . . 2 1 1 . . . . . . . . . . 1 . 2 Piercing Weapon 6 | . . . . . . . . . . . . . . . . . . . . 1 1 4 Special Melee Weapon 1 | . . . . . . . . . . . . . . . . . . . . . 1 . Unidentified Prototypes 32 | . . . 6 5 2 . . . 1 . . . . . 6 . 1 . 6 . . 5 Corrupted Parts 2 | . . . . . . . . . . . . . . . . . . . . . . 2 System Corruption 11 | . . . . . . . . . . . . . . . . . . . . . . 11 Parts Lost 149 | . . . 4 20 . . 1 . . . 9 . . 5 . 2 2 16 9 15 1 65 Power 23 | . . . 1 1 . . 1 . . . 2 . . . . . . 4 2 3 . 9 Propulsion 32 | . . . . 6 . . . . . . 1 . . 2 . 1 . 2 1 4 . 15 Utility 58 | . . . 2 8 . . . . . . 3 . . 3 . 1 1 3 4 6 . 27 Weapon 36 | . . . 1 5 . . . . . . 3 . . . . . 1 7 2 2 1 14 Highest Loss Streak 22 | . . . 1 10 . . 1 . . . 3 . . 5 . 1 2 7 3 5 1 22 To Critical Strikes . | . . . . . . . . . . . . . . . . . . . . . . . Average Slot Usage (%) 92 | . 94 100 99 90 76 98 96 85 73 70 93 100 100 98 91 92 95 90 90 91 97 94 Engine 2 | . 14 5 7 8 . . . 1 5 5 3 1 . . . . . . . . . . Core 3 | . . 5 3 . 10 13 11 5 . . 4 9 11 11 7 5 6 1 3 1 . . Reactor 3 | . . . . . . . . . 4 5 2 . . . 2 5 3 4 6 8 9 7 Treads 10 | . . . 12 13 . . . . 9 11 13 23 23 20 11 14 8 . 13 7 . . Leg 4 | . 20 22 8 . . . . . . . 7 . . . . . . . . 7 19 10 Wheel 3 | . 7 . . 3 . . . . . . . . . . 5 5 7 19 2 4 . 3 Device 15 | . 9 33 12 10 18 21 20 20 3 . 9 11 16 17 15 10 10 19 16 25 16 15 Storage 6 | . 14 11 11 13 . 5 6 5 5 5 5 5 5 5 5 5 5 5 5 5 4 3 Processor 15 | . . . 10 12 13 17 20 19 23 23 22 23 23 23 23 23 21 26 16 10 9 6 Hackware 4 | . . . . . 7 6 6 5 1 . . . . . . . 1 . 5 2 23 27 Protection 5 | . . . 10 10 . . . . 3 5 9 11 5 4 2 5 8 1 2 2 . 1 Energy Gun 2 | . 21 22 10 . . . . . 3 5 1 . . . . . . 4 . . . 6 Energy Cannon 2 | . . . . . . . . . 3 5 2 2 4 3 2 3 1 1 . 10 5 1 Ballistic Gun 3 | . 5 . 10 15 . . . . . . 1 . . . . . . 2 3 1 . . Ballistic Cannon 2 | . . . . . . . . . . . 5 8 5 6 8 6 9 1 7 1 . . Naked Turns . | . . . . . . . . . . . . . . . . . . . . . . . Heaviest Build 118 | 10 17 19 35 118 18 24 26 22 88 88 88 88 88 82 92 94 97 87 107 105 75 105 Greatest Support 140 | 26 26 26 43 43 19 25 27 33 140 140 140 92 92 92 46 50 64 64 130 100 80 112 Greatest Overweight (x) 11 | . . . 2 11 . . . . . . 1 . . 6 7 7 8 2 7 8 . 5 Average Overweight (x) 1 | . . . . 1 . . . . . . . . . . 6 6 6 . . 1 . . Largest Inventory Capacity 25 | 8 8 8 10 25 5 8 8 8 8 8 15 15 15 15 15 15 15 15 15 15 15 15 Average Capacity 13 | 8 8 8 9 13 5 7 8 8 8 8 10 15 15 15 15 15 15 15 15 15 15 14 Most Carried 15 | 6 8 8 10 15 5 7 8 8 8 8 15 15 15 15 15 15 15 15 15 15 15 15 Average Carried 11 | 4 6 7 8 9 4 5 6 7 7 8 9 14 15 14 13 14 13 12 13 12 13 13 Final Capacity 15 | 8 8 8 10 5 5 8 8 8 8 8 15 15 15 15 15 15 15 15 15 15 15 5 Final Carried 15 | 2 8 8 10 4 5 7 6 8 8 8 15 15 15 11 15 15 15 15 15 15 13 2 Class Distribution -------------------- 55% | Scavenger-Mutant 13% | Mutant 12% | Bothacker-Mutant 5% | Scavenger-Tank 4% | Scavenger-Skirmisher Dominant Class ---------------- Mutant | -10/Materials Skirmisher | -9/Materials Scavenger-Mutant | -9/Storage Mutant | -8/Materials Sprinter | -7/Factory Sprinter | -6/Factory Sprinter | -6/DSF Sprinter | -5/Factory Scavenger-Mutant | -5/Waste Scavenger-Mutant | -5/Factory Scavenger-Mutant | -5/Garrison Scavenger-Mutant | -5/Factory Scavenger-Mutant | -5/Upper Caves Scavenger-Mutant | -5/Upper Caves Scavenger-Mutant | -5/Zhirov Scavenger-Mutant | -4/Proximity Caves Scavenger-Mutant | -4/Factory Scavenger-Mutant | -4/Garrison Scavenger-Mutant | -4/Factory Scavenger-Mutant | -4/Garrison Bothacker-Mutant | -3/Research Bothacker-Mutant | -2/Research Resources | -11 -10 -9 -9 -8 -7 -6 -6 -5 -5 -5 -5 -5 -5 -5 -5 -4 -4 -4 -4 -4 -3 -2 ----------- Run | Scr Mat Mat Sto Mat Fac Fac DSF Fac Was Fac Gar Fac Upp Upp Zhi Pro Fac Gar Fac Gar Res Res Matter Collected 13584 | 200 110 80 592 1246 297 . 73 73 194 . 1004 148 29 923 628 363 266 1219 3060 1201 40 1838 Remotely . | . . . . . . . . . . . . . . . . . . . . . . . Salvage Created 15553 | . 141 235 1141 2435 . . 73 38 . . 1200 66 . 456 456 603 108 1399 1901 1721 88 3492 Parts 609 | . 5 15 79 117 . . 3 6 . . 49 4 . 10 3 23 6 48 68 43 2 128 Haulers Intercepted 16 | . 1 . 6 6 . . . . . . . . . . . . . . 2 . 1 . Recyclers Shooed 10 | . . 1 1 . . . . . . . . . . . . . . . 3 . . 5 Parts Field Recycled . | . . . . . . . . . . . . . . . . . . . . . . . Retrieved Matter . | . . . . . . . . . . . . . . . . . . . . . . . Parts Self-Destructed 35 | . . . . . . . . . . . . . . 10 2 23 . . . . . . Prevented . | . . . . . . . . . . . . . . . . . . . . . . . Kills | -11 -10 -9 -9 -8 -7 -6 -6 -5 -5 -5 -5 -5 -5 -5 -5 -4 -4 -4 -4 -4 -3 -2 ------- Run | Scr Mat Mat Sto Mat Fac Fac DSF Fac Was Fac Gar Fac Upp Upp Zhi Pro Fac Gar Fac Gar Res Res Combat Hostiles Destroyed 219 | . 2 4 12 42 . . 1 . . . 19 1 . 9 . 9 3 24 35 26 . 32 Melee 4 | . . . . . . . 1 . . . . . . . . . . . 1 . . 2 Guns 95 | . 2 3 12 30 . . . . . . 6 . . . . . . 9 6 4 . 23 Cannons 85 | . . . . . . . . . . . 12 1 . 9 . 9 3 7 24 17 . 3 AOE 20 | . . . . 12 . . . . . . . . . . . . . 4 4 . . . Classes Destroyed 21 | . 2 4 3 7 . . . . . . 1 . . 1 . . . 1 2 . . . Worker 9 | . . . . 4 . . . 1 . . . . . . . . . . 2 . . 2 Builder 4 | . . . . 3 . . . . . . . . . . . . . . . . . 1 Tunneler 2 | . . . . 1 . . . . . . . . . . . . . . . . . 1 Hauler 16 | . 1 . 6 6 . . . . . . . . . . . . . . 2 . 1 . Recycler 14 | . . 1 3 2 . . . . . . . . . . . . . . 3 . . 5 Mechanic 6 | . . . 2 2 . . . . . . . . . . . . . . 2 . . . Operator 4 | . . . 1 1 . . . . . . . . . . . . . . . . . 2 Watcher 12 | . . 2 1 5 . . . 1 . . . . . . . . . . 1 . . 2 Swarmer 26 | . . 3 . . . . . . . . 6 . . . . . 2 9 6 . . . Saboteur 1 | . . . . . . . . . . . . . . . . . . . 1 . . . Grunt 102 | . 2 . 6 28 . . . . . . 3 . . 8 . 6 1 11 8 18 . 11 Brawler 15 | . . . 1 3 . . . . . . 1 . . . . . . . 5 1 . 4 Duelist 5 | . . . . . . . . . . . 1 . . . . 1 . . 2 1 . . Protector 4 | . . . . 2 . . . . . . . . . . . . . 1 . . . 1 Sentry 26 | . . 1 5 5 . . . . . . 8 1 . . . . . 1 . 3 . 2 Demolisher 1 | . . . . . . . . . . . . . . . . . . 1 . . . . Specialist 3 | . . . . 2 . . 1 . . . . . . . . . . . . . . . Hunter 15 | . . . . 1 . . . . . . . . . . . 2 . . 5 2 . 5 Programmer 18 | . . . . . . . . . . . . . . . . . . . 9 . . 9 Heavy 1 | . . . . 1 . . . . . . . . . . . . . . . . . . Behemoth 3 | . . . . . . . . . . . . . . 1 . . . 1 . 1 . . Best Kill Streak 9 | . 3 5 4 7 . . 1 2 . . 4 1 . 6 . 4 3 9 7 4 1 7 Combat Bots Only 9 | . 2 2 3 6 . . 1 . . . 4 1 . 6 . 4 3 9 5 4 . 6 Max Kills in Single Turn 5 | . 1 1 2 5 . . 1 1 . . 1 1 . 1 . 1 1 3 3 1 1 2 Gunslinging 1 | . . . . . . . . . . . . . . . . . . . . . . 1 Exploded 5 | . . . . 5 . . . . . . . . . . . . . 3 2 . . . Melee 1 | . . . . . . . 1 . . . . . . . . . . . 1 . . 1 Uniques/NPCs Destroyed . | . . . . . . . . . . . . . . . . . . . . . . . Combat | -11 -10 -9 -9 -8 -7 -6 -6 -5 -5 -5 -5 -5 -5 -5 -5 -4 -4 -4 -4 -4 -3 -2 -------- Run | Scr Mat Mat Sto Mat Fac Fac DSF Fac Was Fac Gar Fac Upp Upp Zhi Pro Fac Gar Fac Gar Res Res Damage Taken 29295 | . 41 258 553 3361 43 . 210 . 27 . 3901 . . 1203 . 487 250 2726 2771 3517 107 9840 Core 3190 | . 11 50 78 280 16 . 46 . 13 . 251 . . 209 . 42 . 392 227 161 . 1414 Absorbed by Shields 708 | . . . . . . . 34 . . . . . . . . . . 48 325 . . 301 Reduced by Siege Mode 382 | . . . . . . . . . . . . . . . . . . . 132 95 . 155 Redirected to Shielding 277 | . . . . . . . . . . . . . . . . . 64 107 . . . 106 Regen/Repaired (Parts) 218 | . . . . . . . . . . . . . . . . . 218 . . . . . Core Remaining (%) 75 | 100 95 . 68 49 97 . 94 . . . . . . . . 48 . . . 32 100 . Volleys Fired 1082 | . 8 19 56 135 . . . . . . 100 3 24 84 15 37 18 108 132 148 2 193 Largest 3 | . 2 2 2 2 . . . . . . 2 2 1 2 1 2 2 3 3 3 2 3 Hottest 399 | . 90 90 90 105 . . . . . . 178 132 113 132 113 132 132 245 183 339 176 399 Shots Fired 2017 | . 16 38 108 263 . . . . . . 166 6 24 108 15 54 22 206 298 291 3 399 Gun 1037 | . 16 38 106 250 . . . . . . 93 . . . . . . 113 60 52 . 309 Cannon 872 | . . . . . . . . . . . 73 6 24 108 15 54 18 68 213 236 3 54 Launcher 36 | . . . 2 13 . . . . . . . . . . . . . 18 3 . . . Special 72 | . . . . . . . . . . . . . . . . . 4 7 22 3 . 36 Kinetic 936 | . . . 40 207 . . . . . . 104 6 . 65 . 34 8 78 273 87 . 34 Thermal 809 | . . . 24 . . . . . . . 49 . 24 43 15 20 10 103 . 200 1 320 Explosive 9 | . . . 2 7 . . . . . . . . . . . . . . . . . . Electromagnetic 201 | . 16 38 42 49 . . . . . . 13 . . . . . . 18 3 1 2 19 Robot Hit Streak 27 | . 4 9 9 12 . . . . . . 20 9 . 16 8 10 6 19 16 19 3 27 Robot Miss Streak 5 | . 2 5 4 4 . . . . . . 3 1 . 2 1 2 2 4 3 4 . 5 Penetration Max 1 | . . . . . . . . . . . 1 . . 1 . 1 . 1 1 1 . 1 Secondary Targets 12 | . . 1 . 6 . . . . . . 1 . . . . . . 1 . . . 3 Max Gunslinging Chain 1 | . . 1 . 1 . . . . . . 1 . . . . . . 1 . . . 1 Shots Hit Robots 1285 | . 11 24 69 172 1 . 2 2 . . 110 4 . 52 14 22 9 149 192 148 6 298 Core Hits 538 | . 3 6 33 116 . . 1 1 . . 50 1 . 18 6 15 3 57 78 46 2 102 Critical Kills 49 | . . . . 1 . . . . . . 10 1 . 6 . 8 3 9 6 5 . . Critical Parts Destroyed 53 | . . . . 1 . . . . . . 12 2 . 21 . 7 2 2 3 3 . . Critical Strikes 176 | . 3 1 3 3 . . 1 . . . 27 4 . 34 . 15 5 31 35 12 . 2 Burn 11 | . . . 2 . . . . . . . . . . . . . . 9 . . . . Meltdown 5 | . . . . . . . . . . . . . . . . . . 1 . 4 . . Destroy 123 | . . . . 2 . . . . . . 27 4 . 34 . 15 5 21 10 5 . . Blast 28 | . . . . . . . . . . . . . . . . . . . 25 3 . . Corrupt 6 | . 3 1 1 1 . . . . . . . . . . . . . . . . . . Sever 3 | . . . . . . . 1 . . . . . . . . . . . . . . 2 Melee Attacks 63 | . . . . . 6 1 2 18 . . . . . . . . . . . 3 5 28 Impact . | . . . . . . . . . . . . . . . . . . . . . . . Slashing 40 | . . . . . 6 1 2 18 . . . . . . . . . . . 3 . 10 Piercing 13 | . . . . . . . . . . . . . . . . . . . . . 2 11 Sneak Attacks 13 | . . . . . . . 1 1 . . . . . . . . . . . . 1 10 Combat Hostiles 1 | . . . . . . . 1 . . . . . . . . . . . . . . . Follow-up Attacks . | . . . . . . . . . . . . . . . . . . . . . . . Damage Inflicted 38697 | . 174 396 1233 6028 34 . 131 145 . . 2110 60 . 946 596 408 97 3904 7066 5210 128 10031 Guns 18143 | . 174 396 1177 4120 . . . . . . 1093 . . . . . . 1723 1210 910 . 7340 Cannons 15595 | . . . . . . . . . . . 926 60 . 946 596 408 97 1283 5564 4300 78 1337 Explosions 3208 | . . . 47 1908 . . . . . . . . . . . . . 898 292 . . 63 Melee 1535 | . . . . . 34 . 131 145 . . . . . . . . . . . . 50 1175 Ramming 100 | . . . 9 . . . . . . . 91 . . . . . . . . . . . Kinetic 16904 | . . . 492 3182 . . . . . . 1367 60 . 946 . 408 97 1059 6774 1714 . 805 Thermal 14756 | . . . 320 122 . . . . . . 550 . . . 596 . . 2164 33 3496 . 7475 Explosive 1805 | . . . 20 1700 . . . . . . . . . . . . . . 85 . . . Electromagnetic 3597 | . 174 396 392 1024 . . . . . . 102 . . . . . . 681 174 . 78 576 Impact . | . . . . . . . . . . . . . . . . . . . . . . . Slashing 662 | . . . . . 34 . 131 145 . . . . . . . . . . . . . 352 Piercing 873 | . . . . . . . . . . . . . . . . . . . . . 50 823 Highest Corruption 15 | . . . . 6 . . . . . . . . . . . . . . . . . 15 Average Corruption 4 | . . . . 5 . . . . . . . . . . . . . . . . . 4 Corruption Purged 26 | . . . . . . . . . . . . . . . . . . . . . . 26 Corruption Blocked 29 | . . . . . . . . . . . . . . . . . . . 7 . 5 17 Effects 35 | . . . . 12 . . . . . . . . . . . . . . . . . 23 Message Errors 9 | . . . . 1 . . . . . . . . . . . . . . . . . 8 Matter Fused 7 | . . . . 3 . . . . . . . . . . . . . . . . . 4 Heat Flow Errors 5 | . . . . 2 . . . . . . . . . . . . . . . . . 3 Energy Discharges 4 | . . . . 1 . . . . . . . . . . . . . . . . . 3 Parts Rejected 1 | . . . . 1 . . . . . . . . . . . . . . . . . . Data Loss (minor) 4 | . . . . 1 . . . . . . . . . . . . . . . . . 3 Data Loss (major) 3 | . . . . 1 . . . . . . . . . . . . . . . . . 2 Alerts 2 | . . . . 2 . . . . . . . . . . . . . . . . . . Overload Shots 36 | . . . . . . . . . . . . . . . . . . . . . . 36 Effects 3 | . . . . . . . . . . . . . . . . . . . . . . 3 Heat Surge 3 | . . . . . . . . . . . . . . . . . . . . . . 3 Overflow Damage 850 | . . . 2 17 . . . 33 . . . . . . 158 . . 73 118 152 . 297 Projectiles 438 | . . . . . . . . . . . . . . . 158 . . 4 92 152 . 32 Explosions 114 | . . . 2 17 . . . . . . . . . . . . . 69 26 . . . Melee 298 | . . . . . . . . 33 . . . . . . . . . . . . . 265 Knockbacks 55 | . . . . . . . . . . . 7 . . 4 . 5 1 . 30 8 . . Impact . | . . . . . . . . . . . . . . . . . . . . . . . Kinetic 54 | . . . . . . . . . . . 7 . . 4 . 5 1 . 29 8 . . Secondary 1 | . . . . . . . . . . . . . . . . . . . 1 . . . Self-Inflicted Damage 823 | . . . 105 484 . . . . . . . . . . . . . 186 . . . 48 Shots 28 | . . . 3 18 . . . . . . . . . . . . . 6 . . . 1 Rammed 60 | . . . 3 . . . . . . . 56 . . . . . . . . . . 1 Targets Rammed 61 | . . . 4 . . . . . . . 56 . . . . . . . . . . 1 Kicked 1 | . . . 1 . . . . . . . . . . . . . . . . . . . Crushed . | . . . . . . . . . . . . . . . . . . . . . . . Highest Temperature 463 | . 194 194 225 253 . . . . . . 463 138 180 227 348 140 36 220 196 196 . 318 Average Temperature 80 | . 81 82 50 71 . . . . . . 109 85 71 84 126 38 26 86 77 63 . 96 Received Heat Transfer 4856 | . 24 45 111 1098 18 . . . 9 . 765 . . 420 . 81 24 508 318 606 18 811 Effects 10 | . . . . . . . . . . . 7 . . 2 1 . . . . . . . Shutdowns 3 | . . . . . . . . . . . 3 . . . . . . . . . . . Energy Bleed 3 | . . . . . . . . . . . 2 . . . 1 . . . . . . . Interference 2 | . . . . . . . . . . . . . . 2 . . . . . . . . Short Circuit 1 | . . . . . . . . . . . 1 . . . . . . . . . . . Damage (minor) 1 | . . . . . . . . . . . 1 . . . . . . . . . . . Siege Activations 13 | . . . . . . . . . . . 1 . . . . . . . 4 5 . 3 Total Turns 295 | . . . . . . . . . . . 6 . . . . . . . 122 98 . 69 Longest Duration 50 | . . . . . . . . . . . 6 . . . . . . . 50 31 . 32 Robots Corrupted 9 | . . 2 . . . . . . . . 1 . . . . . . 3 . . . 3 Combat Hostiles 7 | . . 1 . . . . . . . . 1 . . . . . . 2 . . . 3 Parts Fried 30 | . 2 8 . 5 . . . . . . . . . . . . . 9 . . . 6 Impact Corruptions . | . . . . . . . . . . . . . . . . . . . . . . . Robots Melted 8 | . . . . . . . . . . . . . . . . . . 2 . 5 . 1 Combat Hostiles 8 | . . . . . . . . . . . . . . . . . . 2 . 5 . 1 Parts Melted 53 | . . . . . . . . . . . 1 . . . . . . 8 . 16 . 28 Heat Transferred 16923 | . . . 827 250 . . . . . . 888 . . . 434 . . 3555 50 3256 . 7663 Parts Sabotaged 2 | . . . . . . . . . . . . . . . . . . . 2 . . . Parts Stolen . | . . . . . . . . . . . . . . . . . . . . . . . Parts Stripped . | . . . . . . . . . . . . . . . . . . . . . . . Power Chain Reactions 6 | . . . 1 2 . . . . . . . . . . . . . 1 1 . . 1 Missiles Intercepted . | . . . . . . . . . . . . . . . . . . . . . . . Alert | -11 -10 -9 -9 -8 -7 -6 -6 -5 -5 -5 -5 -5 -5 -5 -5 -4 -4 -4 -4 -4 -3 -2 ------- Run | Scr Mat Mat Sto Mat Fac Fac DSF Fac Was Fac Gar Fac Upp Upp Zhi Pro Fac Gar Fac Gar Res Res Peak Influence 2054 | . 47 216 872 1087 494 213 229 173 128 240 1590 884 . . . . 62 965 1750 2054 1171 1370 Initial 1211 | . . 19 91 367 494 163 149 114 60 . 168 834 . . . . . 2 506 1211 1155 658 Average 870 | . 25 121 448 710 285 198 176 138 63 175 1123 842 . . . . 8 495 921 1707 1163 961 Maximum Alert Level 5 | . . 1 3 3 2 1 1 . . 1 4 3 . . . . . 3 5 5 4 4 Low Security (%) 12 | 100 100 72 10 . . 46 76 100 100 44 1 . . . . . 100 13 . . . . Level 1 9 | . . 27 32 15 96 53 23 . . 55 . . . . . . . 24 . . . . Level 2 16 | . . . 43 27 3 . . . . . 3 10 . . . . . 41 43 . . 5 Level 3 32 | . . . 13 57 . . . . . . 53 89 . . . . . 20 18 . . 78 Level 4 17 | . . . . . . . . . . . 41 . . . . . . . 30 39 100 15 Level 5 10 | . . . . . . . . . . . . . . . . . . . 7 60 . . High Security . | . . . . . . . . . . . . . . . . . . . . . . . Max Security . | . . . . . . . . . . . . . . . . . . . . . . . Squads Dispatched 52 | . . . 7 8 2 1 1 . . 2 . . . . . . . . 16 . 1 14 Investigation 7 | . . . 2 1 2 1 . . . . . . . . . . . . 1 . . . Extermination 11 | . . . . . . . . . . . . . . . . . . . 5 . . 6 Reinforcement 13 | . . . 1 4 . . 1 . . 2 . . . . . . . . 2 . 1 2 Assault 16 | . . . 2 3 . . . . . . . . . . . . . . 5 . . 6 Garrison 5 | . . . 2 . . . . . . . . . . . . . . . 3 . . . Intercept . | . . . . . . . . . . . . . . . . . . . . . . . Searches Triggered . | . . . . . . . . . . . . . . . . . . . . . . . Construction Impeded 1 | . . . . . . . . . . . . . . . . . . . . . . 1 Haulers Reinforced 4 | . . . . . . . . . . 1 . . . . . . . . 2 . . 1 Active Scanning Responses 1 | . . . . . . . . . . . . . . . . . . . 1 . . . Cargo Convoy Interrupts . | . . . . . . . . . . . . . . . . . . . . . . . Stealth | -11 -10 -9 -9 -8 -7 -6 -6 -5 -5 -5 -5 -5 -5 -5 -5 -4 -4 -4 -4 -4 -3 -2 --------- Run | Scr Mat Mat Sto Mat Fac Fac DSF Fac Was Fac Gar Fac Upp Upp Zhi Pro Fac Gar Fac Gar Res Res Distress Signals 7 | . . . 2 2 . . . . . . . . . . . . . 1 . . . 2 Communications Jammed 167 | . . . . . . . . . . . . . . . . . 14 . 35 . . 118 Distress Signals 167 | . . . . . . . . . . . . . . . . . 14 . 35 . . 118 Times Spotted 462 | . 4 8 42 68 4 . 7 1 5 2 48 2 . 10 . 9 5 35 78 26 2 106 Peak Tracking Total 9 | . 3 3 8 8 1 . 4 1 3 2 9 1 . 6 . 3 4 4 6 4 2 6 Tactical Retreats 18 | . . . 2 1 . . 1 . . . 9 . . 1 . . . 1 . . . 3 Traps | -11 -10 -9 -9 -8 -7 -6 -6 -5 -5 -5 -5 -5 -5 -5 -5 -4 -4 -4 -4 -4 -3 -2 ------- Run | Scr Mat Mat Sto Mat Fac Fac DSF Fac Was Fac Gar Fac Upp Upp Zhi Pro Fac Gar Fac Gar Res Res Traps Triggered 33 | . . . 1 1 . . 1 1 . . 2 . . . . . 2 8 2 9 . 6 Indirectly . | . . . . . . . . . . . . . . . . . . . . . . . Trap Hack Attempts . | . . . . . . . . . . . . . . . . . . . . . . . Triggered . | . . . . . . . . . . . . . . . . . . . . . . . Disarmed . | . . . . . . . . . . . . . . . . . . . . . . . Reprogrammed . | . . . . . . . . . . . . . . . . . . . . . . . Reused . | . . . . . . . . . . . . . . . . . . . . . . . Traps Extracted . | . . . . . . . . . . . . . . . . . . . . . . . Installed . | . . . . . . . . . . . . . . . . . . . . . . . Triggered . | . . . . . . . . . . . . . . . . . . . . . . . Machines | -11 -10 -9 -9 -8 -7 -6 -6 -5 -5 -5 -5 -5 -5 -5 -5 -4 -4 -4 -4 -4 -3 -2 ---------- Run | Scr Mat Mat Sto Mat Fac Fac DSF Fac Was Fac Gar Fac Upp Upp Zhi Pro Fac Gar Fac Gar Res Res Machines Disabled 42 | . . . 5 6 . . . . . . 4 . . . 1 . . 8 10 6 . 2 Max in Single Turn 4 | . . . 1 1 . . . . . . 1 . . . 1 . . 1 4 1 . 1 Garrison Access 3 | . . . 1 1 . . . 1 . . . . . . . . . . . . . . Garrison Relay 13 | . . . . . . . . . . . 4 . . . . . . 5 . 4 . . Machines Sabotaged . | . . . . . . . . . . . . . . . . . . . . . . . Garrisons Compromised . | . . . . . . . . . . . . . . . . . . . . . . . Overloaded Fab Kills . | . . . . . . . . . . . . . . . . . . . . . . . Hacking | -11 -10 -9 -9 -8 -7 -6 -6 -5 -5 -5 -5 -5 -5 -5 -5 -4 -4 -4 -4 -4 -3 -2 --------- Run | Scr Mat Mat Sto Mat Fac Fac DSF Fac Was Fac Gar Fac Upp Upp Zhi Pro Fac Gar Fac Gar Res Res Machines Accessed 62 | . . 2 13 7 9 5 . 3 . 1 . 3 . . 9 . 4 . 2 . . 4 Terminals 37 | . . 2 10 6 6 4 . 2 . . . 3 . . . . 2 . . . . 2 Fabricators 3 | . . . . . 1 1 . . . . . . . . . . . . . . . 1 Repair Stations 1 | . . . . . . . . . . . . . . . . . 1 . . . . . Recycling Units 4 | . . . 2 . 1 . . . . . . . . . . . . . . . . 1 Scanalyzers . | . . . . . . . . . . . . . . . . . . . . . . . Garrison Access 8 | . . . 1 1 1 . . 1 . 1 . . . . . . 1 . 2 . . . Total Hacks 209 | . . 10 41 24 33 12 . 7 . 2 . 15 . . 48 . 8 . 2 . . 7 Successful 149 | . . 8 26 14 25 7 . 1 . 1 . 11 . . 48 . 3 . 2 . . 3 Failed 60 | . . 2 15 10 8 5 . 6 . 1 . 4 . . . . 5 . . . . 4 Catastrophic 8 | . . . 2 1 3 1 . . . . . . . . . . 1 . . . . . Database Lockouts . | . . . . . . . . . . . . . . . . . . . . . . . Manual 99 | . . 4 23 17 21 11 . 4 . . . 11 . . . . 2 . . . . 6 Terminals 125 | . . 10 33 23 24 8 . 4 . . . 15 . . . . 4 . . . . 4 Fabricators 7 | . . . . . 2 4 . . . . . . . . . . . . . . . 1 Repair Stations 3 | . . . . . . . . . . . . . . . . . 3 . . . . . Recycling Units 12 | . . . 5 . 5 . . . . . . . . . . . . . . . . 2 Scanalyzers . | . . . . . . . . . . . . . . . . . . . . . . . Garrison Access 14 | . . . 3 1 2 . . 3 . 2 . . . . . . 1 . 2 . . . Terminal Hacks 88 | . . 6 13 4 9 1 . . . . . 6 . . 48 . 1 . . . . . Record 37 | . . . 1 . . . . . . . . . . . 36 . . . . . . . Part Schematic 4 | . . . . . . . . . . . . . . . 4 . . . . . . . Robot Schematic 1 | . . . 1 . . . . . . . . . . . . . . . . . . . Robot Analysis 4 | . . . . . . . . . . . . . . . 4 . . . . . . . Prototype ID Bank 8 | . . 1 1 2 . . . . . . . . . . 4 . . . . . . . Open Door 2 | . . . 2 . . . . . . . . . . . . . . . . . . . Open DSF 3 | . . . . . . 1 . . . . . 1 . . . . 1 . . . . . Branch Access Points 3 | . . 1 1 . . . . . . . . 1 . . . . . . . . . . Emergency Access Points 2 | . . . . . 1 . . . . . . 1 . . . . . . . . . . Terminal Index 3 | . . . 1 . 1 . . . . . . 1 . . . . . . . . . . Alert Level 6 | . . 1 2 1 1 . . . . . . 1 . . . . . . . . . . Unreport Threat 3 | . . . 1 . 2 . . . . . . . . . . . . . . . . . Locate Traps 5 | . . 1 2 . 2 . . . . . . . . . . . . . . . . . Dispatch Records 1 | . . 1 . . . . . . . . . . . . . . . . . . . . Maintenance Status 1 | . . . 1 . . . . . . . . . . . . . . . . . . . Recall Investigation 2 | . . . . . 2 . . . . . . . . . . . . . . . . . Hauler Manifests 1 | . . . . 1 . . . . . . . . . . . . . . . . . . Zone Layout 2 | . . 1 . . . . . . . . . 1 . . . . . . . . . . Fabricator Hacks 2 | . . . . . 2 . . . . . . . . . . . . . . . . . Load Schematic 1 | . . . . . 1 . . . . . . . . . . . . . . . . . Build 1 | . . . . . 1 . . . . . . . . . . . . . . . . . Repair Station Hacks 1 | . . . . . . . . . . . . . . . . . 1 . . . . . Refit 1 | . . . . . . . . . . . . . . . . . 1 . . . . . Recycling Unit Hacks 6 | . . . 2 . 3 . . . . . . . . . . . . . . . . 1 Process 1 | . . . . . 1 . . . . . . . . . . . . . . . . . Report Inventory 1 | . . . . . 1 . . . . . . . . . . . . . . . . . Retrieve Matter 1 | . . . . . 1 . . . . . . . . . . . . . . . . . Retrieve Components 3 | . . . 2 . . . . . . . . . . . . . . . . . . 1 Scanalyzer . | . . . . . . . . . . . . . . . . . . . . . . . Garrison Access Hacks 7 | . . . 1 1 . . . 1 . 1 . . . . . . 1 . 2 . . . Unlock Access 4 | . . . . . . . . . . 1 . . . . . . 1 . 2 . . . Seal Access 3 | . . . 1 1 . . . 1 . . . . . . . . . . . . . . Unauthorized Hacks 45 | . . 2 10 9 11 6 . . . . . 5 . . . . . . . . . 2 Terminals 36 | . . 2 7 9 9 4 . . . . . 5 . . . . . . . . . . Track 8 | . . . 1 2 3 . . . . . . 2 . . . . . . . . . . Botnet 22 | . . 2 5 5 5 3 . . . . . 2 . . . . . . . . . . Operators 6 | . . . 1 2 1 1 . . . . . 1 . . . . . . . . . . Fabricators 3 | . . . . . . 2 . . . . . . . . . . . . . . . 1 Report 1 | . . . . . . 1 . . . . . . . . . . . . . . . . Liberate 1 | . . . . . . . . . . . . . . . . . . . . . . 1 Haulers 1 | . . . . . . 1 . . . . . . . . . . . . . . . . Repair Stations . | . . . . . . . . . . . . . . . . . . . . . . . Recycling Units 6 | . . . 3 . 2 . . . . . . . . . . . . . . . . 1 Reject 4 | . . . 2 . 1 . . . . . . . . . . . . . . . . 1 Recyclers 2 | . . . 1 . 1 . . . . . . . . . . . . . . . . . Scanalyzers . | . . . . . . . . . . . . . . . . . . . . . . . Garrison Access . | . . . . . . . . . . . . . . . . . . . . . . . Data Cores Recovered 1 | . . . 1 . . . . . . . . . . . . . . . . . . . Used 1 | . . . 1 . . . . . . . . . . . . . . . . . . . Hacking Detections 46 | . . 2 11 6 9 4 . 2 . 1 . 3 . . . . 4 . 1 . . 3 Full Trace Events 4 | . . . 1 . 2 1 . . . . . . . . . . . . . . . . Feedback Events . | . . . . . . . . . . . . . . . . . . . . . . . Feedback Blocked . | . . . . . . . . . . . . . . . . . . . . . . . Robot Schematics Acquired 1 | . . . 1 . . . . . . . . . . . . . . . . . . . Robots Built . | . . . . . . . . . . . . . . . . . . . . . . . Authchips . | . . . . . . . . . . . . . . . . . . . . . . . Time 99 | . . . . . 99 . . . . . . . . . . . . . . . . . Total Robot Build Rating . | . . . . . . . . . . . . . . . . . . . . . . . Part Schematics Acquired 4 | . . . . . . . . . . . . . . . 4 . . . . . . . Parts Built . | . . . . . . . . . . . . . . . . . . . . . . . Authchips . | . . . . . . . . . . . . . . . . . . . . . . . Time . | . . . . . . . . . . . . . . . . . . . . . . . Total Part Build Rating . | . . . . . . . . . . . . . . . . . . . . . . . Parts Repaired . | . . . . . . . . . . . . . . . . . . . . . . . Time . | . . . . . . . . . . . . . . . . . . . . . . . Parts Recycled . | . . . . . . . . . . . . . . . . . . . . . . . Recycled Matter 11 | . . . . . 11 . . . . . . . . . . . . . . . . . Retrieved Matter 11 | . . . . . 11 . . . . . . . . . . . . . . . . . Retrieved Components 28 | . . . 18 . . . . . . . . . . . . . . . . . . 10 Parts Scanalyzed . | . . . . . . . . . . . . . . . . . . . . . . . Part Schematics Acquired . | . . . . . . . . . . . . . . . . . . . . . . . Parts Damaged . | . . . . . . . . . . . . . . . . . . . . . . . Bothacking | -11 -10 -9 -9 -8 -7 -6 -6 -5 -5 -5 -5 -5 -5 -5 -5 -4 -4 -4 -4 -4 -3 -2 ------------ Run | Scr Mat Mat Sto Mat Fac Fac DSF Fac Was Fac Gar Fac Upp Upp Zhi Pro Fac Gar Fac Gar Res Res Used RIF Installer 3 | . . . . . . . . . . . 1 . . . . . . 1 . 1 . . Command Fork 1 | . . . . . . . . . . . . . . . . . . . . 1 . . Program Shield 1 | . . . . . . . . . . . . . . . . . . 1 . . . . Robots Hacked 27 | . . . . . . . . . . . . . . . . . 3 . 8 1 2 13 Non-combat 13 | . . . . . . . . . . . . . . . . . 3 . 2 . 1 7 Combat 14 | . . . . . . . . . . . . . . . . . . . 6 1 1 6 Robot Hacks Applied 39 | . . . . . . . . . . . . . . . . . 3 . 11 2 2 21 parse_system 4 | . . . . . . . . . . . . . . . . . . . . . . 4 ignore_repairs 2 | . . . . . . . . . . . . . . . . . . . . . . 2 map_walls 2 | . . . . . . . . . . . . . . . . . 1 . . . . 1 map_earth 1 | . . . . . . . . . . . . . . . . . . . . . 1 . drop_inventory 1 | . . . . . . . . . . . . . . . . . . . . . . 1 find_recycling 1 | . . . . . . . . . . . . . . . . . . . . . . 1 ignore_parts 2 | . . . . . . . . . . . . . . . . . . . . . . 2 map_route 3 | . . . . . . . . . . . . . . . . . . . 2 . . 1 mark_security 3 | . . . . . . . . . . . . . . . . . . . 2 . . 1 relay_feed 1 | . . . . . . . . . . . . . . . . . . . 1 . . . find_garrison 1 | . . . . . . . . . . . . . . . . . . . . . . 1 link_fov 1 | . . . . . . . . . . . . . . . . . 1 . . . . . disable_weapons 2 | . . . . . . . . . . . . . . . . . . . . 1 . 1 go_dormant 1 | . . . . . . . . . . . . . . . . . . . . 1 . . streamctrl_high 1 | . . . . . . . . . . . . . . . . . . . 1 . . . formatsys_low 2 | . . . . . . . . . . . . . . . . . 1 . . . . 1 formatsys_high 11 | . . . . . . . . . . . . . . . . . . . 5 . 1 5 Relay Couplers Released 52 | . . . . . . . . . . . 13 . . . . . . 22 . 17 . . Machine Destruction 52 | . . . . . . . . . . . 13 . . . . . . 22 . 17 . . Attached 16 | . . . . . . . . . . . . . . . . . 1 . 7 2 3 3 Fabnet Peak Effective % . | . . . . . . . . . . . . . . . . . . . . . . . Robots Rewired 3 | . . . . . . . . . . . . . . . . . . 3 . . . . Allies Hacked . | . . . . . . . . . . . . . . . . . . . . . . . Hacks Repelled . | . . . . . . . . . . . . . . . . . . . . . . . Allies | -11 -10 -9 -9 -8 -7 -6 -6 -5 -5 -5 -5 -5 -5 -5 -5 -4 -4 -4 -4 -4 -3 -2 -------- Run | Scr Mat Mat Sto Mat Fac Fac DSF Fac Was Fac Gar Fac Upp Upp Zhi Pro Fac Gar Fac Gar Res Res Total Allies 53 | . . . 12 . . . . . 19 . . . . . . . 1 3 6 . 2 10 Largest Group 19 | . . . 10 2 . . . . 19 12 9 . . . . . 1 3 2 . 2 5 Highest-Rated Group 702 | . . . 115 107 . . . . 702 492 383 . . . . . 14 168 185 . 201 347 Highest-Rated Ally 178 | . . . 100 92 . . . . 50 50 50 . . . . . 14 56 137 . 137 178 Total Orders 14 | . . . . . . . . . . . . . . . . . 1 . 7 1 . 5 STAY 4 | . . . . . . . . . . . . . . . . . . . 3 . . 1 FOLLOW 6 | . . . . . . . . . . . . . . . . . . . 4 . . 2 AID 1 | . . . . . . . . . . . . . . . . . 1 . . . . . PICKUP 2 | . . . . . . . . . . . . . . . . . . . . . . 2 RETURN 1 | . . . . . . . . . . . . . . . . . . . . 1 . . Ally Attacks 554 | . . . 129 8 . . . . 126 33 41 . . . . . . 44 82 . . 91 Total Damage 18815 | . . . 1918 135 . . . . 4677 1068 1918 . . . . . . 1369 3133 . . 4597 Kills 121 | . . . 32 . . . . . 11 6 17 . . . . . . 10 21 . . 24 Allies Corrupted 5 | . . . . . . . . . . . . . . . . . . . . . . 5 Allies Melted . | . . . . . . . . . . . . . . . . . . . . . . . Intel | -11 -10 -9 -9 -8 -7 -6 -6 -5 -5 -5 -5 -5 -5 -5 -5 -4 -4 -4 -4 -4 -3 -2 ------- Run | Scr Mat Mat Sto Mat Fac Fac DSF Fac Was Fac Gar Fac Upp Upp Zhi Pro Fac Gar Fac Gar Res Res Robot Analysis Total 4 | . . . . . . . . . . . . . . . 4 . . . . . . . Derelict Logs Recovered 4 | . . . . . . . . . . . . . 1 1 . 2 . . . . . . Drone Launches 1 | . . . . . . . . . . . . . . . . . . . . 1 . . Drone Recoveries 1 | . . . . . . . . . . . . . . . . . . . . 1 . . Exploration | -11 -10 -9 -9 -8 -7 -6 -6 -5 -5 -5 -5 -5 -5 -5 -5 -4 -4 -4 -4 -4 -3 -2 ------------- Run | Scr Mat Mat Sto Mat Fac Fac DSF Fac Was Fac Gar Fac Upp Upp Zhi Pro Fac Gar Fac Gar Res Res Turns Passed 21338 | 8 146 317 1899 2205 340 83 51 245 661 54 2153 449 748 1202 459 843 554 1138 1815 3030 163 2775 Spaces Moved 12070 | 1 88 188 1080 1024 860 237 86 414 463 27 1112 247 422 591 209 352 248 709 743 1581 112 1276 Core 165 | . . . . 83 75 . . . . . . . . . . . . . . . . 7 Treads 4350 | . . . 620 702 . . . . 330 27 703 247 422 493 1 1 . 1 485 302 . 16 Legs 2591 | . 61 188 460 . . . . . . . 409 . . . . . . . . 604 112 757 Wheels 3223 | 1 27 . . 239 . . . . . . . . . 98 208 351 248 708 258 675 . 410 Hover 293 | . . . . . . . . 74 133 . . . . . . . . . . . . 86 Flight 1448 | . . . . . 785 237 86 340 . . . . . . . . . . . . . . Fastest Speed 27 | 90 90 120 120 50 32 30 27 32 62 160 120 160 160 160 180 195 110 90 110 120 120 50 Average Speed 132 | 90 110 120 149 166 33 30 27 37 131 160 147 160 160 163 186 195 188 97 151 152 120 124 Slowest Speed 320 | 90 120 120 260 320 50 32 34 66 160 160 240 160 160 180 240 245 210 240 250 245 120 250 Overloaded Moves 71 | . . . . . . . 71 . . . . . . . . . . . . . . . Propulsion Burnouts . | . . . . . . . . . . . . . . . . . . . . . . . Robots Hopped 13 | . . . . . 11 1 1 . . . . . . . . . . . . . . . Cave-ins Triggered . | . . . . . . . . . . . . . . . . . . . . . . . Teleports 1 | . . . . . . . . . . . . . . . . . . . . . . 1 Exploration Rate (%) 43 | 2 22 20 96 61 21 7 84 9 96 2 89 9 63 62 63 52 10 90 21 96 4 19 Regions Visited 22 Branch Regions 5 Pre-discovered Areas 4 | . . . . . . . . . . . . . . . 3 1 . . . . . . Known Exits Taken 10 | . . 1 . . . 1 . . . 1 . 1 1 1 1 1 1 . 1 . . . Unknown Exits Taken 6 | 1 1 . 1 1 1 . . . . . . . . . . . . . . . 1 . Scrap Searched 6 | . . . . . . . . . . . . . 1 . . 5 . . . . . . Spaces Dug 180 | . . . . . 5 1 . 16 . . 4 . 24 43 . 20 10 3 1 41 2 10 Terrain Destroyed 666 | . . . 21 217 5 1 . 16 . . 13 . 24 45 . 21 10 5 142 92 2 52 Melee 24 | . . . . . 5 1 . 16 . . . . . . . . . . . . 1 1 Projectile 379 | . . . 2 23 . . . . . . 13 . 24 44 . 21 10 5 97 92 1 47 AOE 261 | . . . 19 194 . . . . . . . . . . . . . . 45 . . 3 Terrain Rammed . | . . . . . . . . . . . . . . . . . . . . . . . Walls Destroyed . | . . . . . . . . . . . . . . . . . . . . . . . Machines Disabled . | . . . . . . . . . . . . . . . . . . . . . . . Actions | -11 -10 -9 -9 -8 -7 -6 -6 -5 -5 -5 -5 -5 -5 -5 -5 -4 -4 -4 -4 -4 -3 -2 --------- Run | Scr Mat Mat Sto Mat Fac Fac DSF Fac Was Fac Gar Fac Upp Upp Zhi Pro Fac Gar Fac Gar Res Res Total 15543 | 8 121 243 1262 1292 888 245 111 471 522 37 1419 293 470 726 266 450 313 1031 1195 1963 133 2084 Wait 976 | . 3 15 46 25 1 . . 3 12 10 63 25 23 36 7 45 6 102 189 75 5 285 Move 12028 | . 87 187 1079 1023 839 234 83 414 462 27 1111 246 421 590 208 351 248 708 743 1580 111 1276 Hop 11 | . . . . . 9 1 1 . . . . . . . . . . . . . . . Pick Up 237 | . 9 7 17 16 9 4 3 9 8 . 15 4 . 2 9 2 6 15 15 22 1 64 Fast Attach 221 | . 4 1 15 22 12 2 2 7 10 . 23 2 . . 9 1 7 13 21 20 1 49 Attach 147 | 1 2 4 6 16 . 2 . 4 3 . 6 . . 4 1 1 7 11 12 15 3 49 Detach 52 | . 1 1 . 5 1 . 1 4 5 . 5 . . . 1 . 4 3 4 3 . 14 Swap 205 | 3 1 3 9 18 . . 1 1 . . 15 7 2 8 3 11 8 16 36 8 3 52 Drop 324 | 4 6 6 30 32 11 1 7 11 22 . 22 6 . 2 13 2 9 12 27 28 1 72 Fire 1082 | . 8 19 56 135 . . . . . . 100 3 24 84 15 37 18 108 132 148 2 193 Melee 63 | . . . . . 6 1 2 18 . . . . . . . . . . . 3 5 28 Ram 1 | . . . . . . . . . . . . . . . . . . . . . . 1 Kick 1 | . . . 1 . . . . . . . . . . . . . . . . . . . Crush 59 | . . . 3 . . . . . . . 56 . . . . . . . . . . . Escape Stasis 134 | . . . . . . . 11 . . . 3 . . . . . . 43 16 61 . . Rewire 2 | . . . . . . . . . . . . . . . . . . . . . 1 1 Trap . | . . . . . . . . . . . . . . . . . . . . . . . Miscellaneous . | . . . . . . . . . . . . . . . . . . . . . . . Route ------- -11/Scrapyard -10/Materials -9/Materials (discovered 2 exits: Min / *Sto) -9/Storage (discovered 2 exits: *Mat / *Rec) -8/Materials -7/Factory -6/Factory -6/DSF -5/Factory -5/Waste -5/Factory -5/Garrison (discovered 3 exits: *Fac x3) -5/Factory (discovered 2 exits: *Upp x2) -5/Upper Caves -5/Upper Caves (discovered 2 exits: *Fac / *Zhi) -5/Zhirov -4/Proximity Caves -4/Factory (discovered 2 exits: Res / Gar) -4/Garrison (discovered 3 exits: *Fac x3) -4/Factory (discovered 3 exits: *Res / Gar / Gar) -4/Garrison (discovered 3 exits: *Res x3) -3/Research (discovered 2 exits: *Res / Qua) -2/Research History --------- Turn | Location | Event 9 | -11/Scrapyard | Discovered new exit (range 0) 9 | -11/Scrapyard | Entered Materials 133 | -10/Materials | Discovered new exit (range 15) 155 | -10/Materials | Entered another Materials area 155 | -9/Materials | Evolved 2 slots: Utility x2 346 | -9/Materials | Identified exit to Mines 346 | -9/Materials | Identified exit to Storage 472 | -9/Materials | Entered Storage 509 | -9/Storage | Build established: Skirmisher 688 | -9/Storage | Identified exit to Recycling 691 | -9/Storage | Assisted by bots powering up and referring to "LRC-V3" 786 | -9/Storage | Garrison activated, responded to threat 1045 | -9/Storage | Used back door to open Recycling access 1192 | -9/Storage | Build established: Mutant 1459 | -9/Storage | Met 01-MTF 1546 | -9/Storage | Build established: Scavenger-Mutant 2072 | -9/Storage | First assault squad dispatched 2354 | -9/Storage | Discovered new exit (range 10) 2371 | -9/Storage | Entered Materials 2371 | -8/Materials | Accompanied by 2 allies (01-MTF) 2371 | -8/Materials | Evolved 2 slots: Utility x2 2376 | -8/Materials | 01-MTF left 2623 | -8/Materials | Build established: Mutant 2630 | -8/Materials | Found Prototype Launcher 2630 | -8/Materials | Identified Rocket Array 3030 | -8/Materials | Lost 3 parts (3u) 3171 | -8/Materials | First assault squad dispatched 3345 | -8/Materials | Build established: Scavenger-Mutant 4114 | -8/Materials | Build established: Mutant 4482 | -8/Materials | Discovered new exit (range 6) 4520 | -8/Materials | Core integrity fell below 50% 4550 | -8/Materials | Lost 10 parts (1p2n2u5w) 4576 | -8/Materials | Entered Factory 4576 | -7/Factory | Evolved 2 slots: Power x1, Propulsion x1 4915 | -7/Factory | Discovered new exit (range 5) 4916 | -7/Factory | Build established: Sprinter 4916 | -7/Factory | Entered another Factory area 4916 | -6/Factory | Evolved 2 slots: Utility x2 4953 | -6/Factory | Identified exit to DSF 4999 | -6/Factory | Entered DSF 5028 | -6/DSF | Discovered new exit (range 21) 5031 | -6/DSF | Additional patrols routed to DSF 5050 | -6/DSF | Entered Factory 5050 | -5/Factory | Evolved 2 slots: Propulsion x1, Utility x1 5295 | -5/Factory | Sucked down chute 5295 | -5/Factory | Entered Waste 5321 | -5/Waste | Spotted C-40 Crusher 5339 | -5/Waste | Warlord forces began an assault 5374 | -5/Waste | Allies destroyed C-40 Crusher 5387 | -5/Waste | Spotted C-40 Crusher 5392 | -5/Waste | Spotted C-40 Crusher 5393 | -5/Waste | Allies destroyed C-40 Crusher 5398 | -5/Waste | Spotted C-40 Crusher 5399 | -5/Waste | Allies destroyed C-40 Crusher 5402 | -5/Waste | Found Damper Plating 5405 | -5/Waste | Allies destroyed C-40 Crusher 5504 | -5/Waste | Spotted C-40 Crusher 5511 | -5/Waste | Allies destroyed C-40 Crusher 5688 | -5/Waste | Build established: Scavenger-Mutant 5693 | -5/Waste | Spotted C-40 Crusher 5696 | -5/Waste | Allies destroyed C-40 Crusher 5799 | -5/Waste | Discovered new exit (range 22) 5954 | -5/Waste | Identified exit to Factory 5956 | -5/Waste | Entered Factory 5956 | -5/Factory | Accompanied by 13 allies 6007 | -5/Factory | Identified exit to Garrison 6010 | -5/Factory | Entered Garrison 6010 | -5/Garrison | Accompanied by 9 allies 6094 | -5/Garrison | Triggered checkpoint 6112 | -5/Garrison | Triggered checkpoint 6116 | -5/Garrison | Triggered checkpoint 6130 | -5/Garrison | Triggered checkpoint 6299 | -5/Garrison | Lost 3 parts (1p1u1w) 6458 | -5/Garrison | Triggered checkpoint 6508 | -5/Garrison | Garrison Relay disabled 6534 | -5/Garrison | Discovered new exit (range 21) 6572 | -5/Garrison | Identified exit to Factory 6836 | -5/Garrison | Triggered checkpoint 6919 | -5/Garrison | Discovered exit to Factory (range 21) 6983 | -5/Garrison | Installed Relay Interface Framework 7274 | -5/Garrison | Triggered checkpoint 7309 | -5/Garrison | Garrison Relay disabled 7422 | -5/Garrison | Triggered checkpoint 7424 | -5/Garrison | Garrison Relay disabled 7617 | -5/Garrison | Discovered exit to Factory (range 8) 8111 | -5/Garrison | Garrison Relay disabled 8163 | -5/Garrison | Entered Factory 8434 | -5/Factory | Identified exit to Upper Caves 8612 | -5/Factory | Entered Upper Caves 8701 | -5/Upper Caves | Encountered a Warlord checkpoint 9218 | -5/Upper Caves | Learned location of 1 exit from Factory 9325 | -5/Upper Caves | Discovered new exit (range 10) 9341 | -5/Upper Caves | Identified exit to Upper Caves 9360 | -5/Upper Caves | Entered another Upper Caves area 9599 | -5/Upper Caves | Discovered new exit (range 9) 9611 | -5/Upper Caves | Identified exit to Factory 9942 | -5/Upper Caves | Spotted B-75 Beast 10343 | -5/Upper Caves | Destroyed B-75 Beast 10404 | -5/Upper Caves | Lost 5 parts (2n3u) 10546 | -5/Upper Caves | Discovered new exit (range 10) 10561 | -5/Upper Caves | Identified exit to Zhirov 10562 | -5/Upper Caves | Entered Zhirov 10562 | -5/Zhirov | Discovered new exit (range 4) 10566 | -5/Zhirov | Identified exit to Proximity Caves 10595 | -5/Zhirov | Met Zhirov 10629 | -5/Zhirov | Learned location of Quarantine (-3) 10629 | -5/Zhirov | Learned location of Testing (-2) 10629 | -5/Zhirov | Learned location of Command (-1) 10663 | -5/Zhirov | Zhirov requested help retrieving the SGEMP Prototype 10692 | -5/Zhirov | Build established: Scavenger-Skirmisher 10693 | -5/Zhirov | Found Alien Artifact 10693 | -5/Zhirov | Identified Integrated Dissipator 10693 | -5/Zhirov | Installed Integrated Dissipator, increased core heat dissipation (+20) 10714 | -5/Zhirov | Found Alien Artifact 11021 | -5/Zhirov | Entered Proximity Caves 11062 | -4/Proximity Caves | Build established: Scavenger-Mutant 11544 | -4/Proximity Caves | Spotted B-86 Titan 11719 | -4/Proximity Caves | Core integrity fell below 50% 11849 | -4/Proximity Caves | Discovered exit to Factory (range 9) 11864 | -4/Proximity Caves | Entered Factory 11864 | -4/Factory | Evolved 2 slots: Utility x1, Weapon x1 11865 | -4/Factory | Identified exit to Research 12016 | -4/Factory | Identified exit to DSF 12173 | -4/Factory | Found Prototype Launcher 12173 | -4/Factory | Identified Tesla Bomb Launcher 12418 | -4/Factory | Identified exit to Garrison 12418 | -4/Factory | Entered Garrison 12424 | -4/Garrison | Expanded RIF knowledge: Program Shield 12452 | -4/Garrison | Triggered checkpoint 12569 | -4/Garrison | Spotted B-86 Titan 12611 | -4/Garrison | Destroyed B-86 Titan 12636 | -4/Garrison | Lost 7 parts (2p2u3w) 12638 | -4/Garrison | Build established: Mutant 12722 | -4/Garrison | Triggered checkpoint 12780 | -4/Garrison | Triggered checkpoint 12870 | -4/Garrison | Destroyed 9 combat bots 12904 | -4/Garrison | Triggered checkpoint 12912 | -4/Garrison | Triggered checkpoint 12972 | -4/Garrison | Lost 4 parts (1p1n1u1w) 13003 | -4/Garrison | Discovered new exit (range 8) 13009 | -4/Garrison | Identified exit to Factory 13213 | -4/Garrison | Discovered exit to Factory (range 9) 13236 | -4/Garrison | Triggered checkpoint 13259 | -4/Garrison | Garrison Relay disabled 13314 | -4/Garrison | Triggered checkpoint 13347 | -4/Garrison | Triggered checkpoint 13362 | -4/Garrison | Build established: Bothacker-Mutant 13441 | -4/Garrison | Triggered checkpoint 13503 | -4/Garrison | Garrison Relay disabled 13527 | -4/Garrison | Discovered exit to Factory (range 19) 13556 | -4/Garrison | Entered Factory 13556 | -4/Factory | Accompanied by 1 ally 13620 | -4/Factory | Identified exit to Garrison 13835 | -4/Factory | Discovered exit to Research (range 94) 14213 | -4/Factory | Found Prototype Processor 14213 | -4/Factory | Identified Exp. Melee Analysis Suite 14236 | -4/Factory | Garrison activated, responded to threat 14326 | -4/Factory | Found Prototype Device 14326 | -4/Factory | Identified Active Sensor Suite 14344 | -4/Factory | First assault squad dispatched 14977 | -4/Factory | Core integrity fell below 50% 15106 | -4/Factory | Lost 3 parts (1n1u1w) 15371 | -4/Factory | Identified exit to Garrison 15371 | -4/Factory | Entered Garrison 15448 | -4/Garrison | Triggered checkpoint 15499 | -4/Garrison | Garrison Relay disabled 15590 | -4/Garrison | Found Unknown Piercing Weapon 15590 | -4/Garrison | Identified Enh. Force Lance 15659 | -4/Garrison | Spotted B-86 Titan 15790 | -4/Garrison | Lost 3 parts (2u1w) 15800 | -4/Garrison | Found Enh. Force Lance 16024 | -4/Garrison | Triggered checkpoint 16087 | -4/Garrison | Lost 5 parts (1p2n2u) 16180 | -4/Garrison | Garrison Relay disabled 16207 | -4/Garrison | Discovered exit to Research (range 12) 16246 | -4/Garrison | Expanded RIF knowledge: Command Fork 16254 | -4/Garrison | Build established: Scavenger-Mutant 16392 | -4/Garrison | Triggered checkpoint 16448 | -4/Garrison | Destroyed B-86 Titan 16456 | -4/Garrison | Triggered checkpoint 16466 | -4/Garrison | Found Hvy. Reflective Plating 16554 | -4/Garrison | Triggered checkpoint 16600 | -4/Garrison | Discovered exit to Research (range 11) 16844 | -4/Garrison | Triggered checkpoint 16875 | -4/Garrison | Garrison Relay disabled 17114 | -4/Garrison | Triggered checkpoint 17418 | -4/Garrison | Build established: Scavenger-Tank 17588 | -4/Garrison | Discovered exit to Research (range 8) 17638 | -4/Garrison | Triggered checkpoint 17685 | -4/Garrison | Garrison Relay disabled 17963 | -4/Garrison | Build established: Scavenger-Mutant 18401 | -4/Garrison | Entered Research 18401 | -3/Research | Evolved 2 slots: Utility x2 18402 | -3/Research | Identified exit to Quarantine 18487 | -3/Research | Discovered new exit (range 5) 18497 | -3/Research | Spotted B-86 Titan 18564 | -3/Research | Entered another Research area 18564 | -2/Research | Accompanied by 2 allies 18564 | -2/Research | Evolved 2 slots: Utility x2 18586 | -2/Research | Build established: Bothacker-Mutant 18719 | -2/Research | Found Exp. Transmission Jammer 19064 | -2/Research | First assault squad dispatched 19314 | -2/Research | Lost 3 parts (1n2u) 19361 | -2/Research | Found Exp. Force Field 19499 | -2/Research | Lost 3 parts (2n1w) 19672 | -2/Research | Found Prototype Device 19672 | -2/Research | Identified System Purifier 19675 | -2/Research | Found System Purifier 19770 | -2/Research | P-80 Master assimilated allied Eye 9a 19869 | -2/Research | Lost 8 parts (2p1n2u3w) 20043 | -2/Research | Lost 11 parts (1p2n4u4w) 20076 | -2/Research | Core integrity fell below 50% 20081 | -2/Research | Identified Transdimensional Reconstructor 20081 | -2/Research | Warped through subspace 20091 | -2/Research | Found Corrupted Exp. Transmission Jammer 20092 | -2/Research | System corruption reached 10% 20156 | -2/Research | Build established: Scavenger-Mutant 20287 | -2/Research | Found Prototype Slashing Weapon 20287 | -2/Research | Identified Molecular Scythe 20412 | -2/Research | Found Prototype Processor 20412 | -2/Research | Identified Exp. Targeting Computer 20487 | -2/Research | Lost 3 parts (1n2u) 20618 | -2/Research | Lost 3 parts (1n2u) 20857 | -2/Research | Found System Purifier 21250 | -2/Research | Lost 3 parts (1n1u1w) 21319 | -2/Research | Core integrity fell below 20% 21339 | -2/Research | Destroyed by G-73 Enforcer with Phase Gun Last Messages --------------- 21315_ Slammed into L-61 Swordsman. 21315_ K-01 Serf destroyed. 21319_ Lrg. Storage Unit destroyed. 21319_ Imp. Hacking Suite destroyed. 21320_ Relay Coupler [Hunter] destroyed. 21320_ Graphene Brace destroyed. 21320_ Lgt. Quantum Reactor destroyed. 21320_ System corrupted by crushing effect (+3). 21320_ System corrupted by crushing effect (+5). 21320_ System corrupted by crushing effect (+3). 21325_ Dropped Imp. Matter Compressor. 21326_ Dropped Corrupted Myomer Leg. 21327_ Exp. Force Field destroyed. 21327_ Dropped Corrupted Myomer Leg. 21327_ L-61 Swordsman destroyed. 21327_ Dropped Adv. Heavy Siege Treads. 21330_ Adv. Coolant Injector destroyed. 21330_ System corrupted by crushing effect (+1). 21336_ Nova Cannon destroyed. 21337_ Acquired Adv. Remote Datajack. Map ----- +----------------------------------------------------+ | + ""? ????????? | | ##################+### # ????????? | | #??????????# # # ????????? | | #??????????# # #########???????? | | ? "" #??????????# ! [! # ????????? | | ??"" ####???????# / # ????????? | | ??? ????????# # ????????? | | ? ????????# ! # ????????? | | ? ????????#?????????# #########???????? | | ????????????????????????????# #???????????????? | | ????????????????????????????# #???????????????? | | ????????????????????????????# #???????????????? | | ????????????????????????????# #???????????????? | | ????????????????????????????# #???????????????? | | ????????????????????????????# #???????????????? | | ????????????????????????????# #???????????????? | | ????????????????????????????# #???????????????? | | ????????????????????????????# #???????????????? | | ????????????????????????????# #???????????????? | | ????????????????????????????# #???????????????? | | ????????????????????????????# % #???????????????? | | ????????????????????????????# #???????????????? | | ??????????????????########### #???????????????? | | ??????????????????# *%!!=%#! % "##########?????? | | ??????????????????# =!=b[# #= """ #?????? | | ??????????????????# !i@%g#" # " #?????? | | ??????????????????# *%!=# %# =% == #?????? | | ??????????????????# === # *!#%=! %[ #?????? | | ??????????????????# =# %%+=%%% #?????? | | ??????????????????# # %%#%=!! #?????? | | ??????????????????# # *#[%%% #?????? | | ??????????????########g###### #!=* #?????? | | ??????????????# ###########?????? | | ??????????????# #??##???????????? | | ??????????????# #???????????????? | | ??????????????# #?#?????????????? | | ????########??# ##########+########???????????? | | ##### ??# =#????????# #???????????? | | # ?# #????????# #???????????? | | # ?#% %#????????# #???????????? | | # #|*=[########## #???????????? | | # #%%!%# ! # #???????????? | | # /!![!# # #???????????? | | # # !% # "+% !! #???????????? | | # # ! # "%#* ! ! #???????????? | | ########### # "# !! *!#???????????? | | # # # ###+###+##???????????? | | # # # ! #?# ##%%[#???????????? | | # # # #?# ### ##???????????? | | ##### + + ### #?#![#???????????? | +----------------------------------------------------+ Best States ------------- Heat Dissipation 119 Coolant Potential 100 Energy Generation 45 Energy Capacity 1130 Matter Stores 450 Matter Capacity 600 Sight Range 22 Robot Scan Range 20 Terrain Scan Range 16 Terrain Scan Density 10 Jamming Range 22 Additional Mass Support 9 Corruption Block 15 Armor Coverage 1600 Resistance: TH 25 Resistance: EM 90 Core Shielding 30 Propulsion Shielding 90 Weapon Cycling 20 Melee Speed Boost 20 Phase Shifting 10 Evasion (%) 64 Targeting Accuracy 16 Melee Accuracy 6 Target Analysis 12 Core Analysis 6 Armor Integrity Analysis 30 Recoil Reduction 4 Matter Filtering 30 Offensive Hacking 24 Defensive Hacking 10 Relay Coupler Types 7 Relay Coupler Value 172 Item Schematics ----------------- Assault Drone Bay | -5/Zhirov | Free Exp. Heat Sink | -5/Zhirov | Free Exp. Optical Array | -5/Zhirov | Free Imp. Arc Thrower | -5/Zhirov | Free Robot Schematics ------------------ B-36 Bruiser | -9/Storage | Hacked Fabricated ------------ Nothing Alien Tech Used ----------------- Integrated Dissipator Transdimensional Reconstructor Achievements -------------- None Challenges ------------ None Game ------ Seed TerrainArmoredStripper Manual? 0 Play Time 10:53:35 Cumulative 206.2 hours Start 2022.04.03 @ 14:50:20 End 2022.04.18 @ 16:00:40 Sessions 13 Manual Loads 0 Difficulty Rogue Special Mode None Game No. 67 Rogue 64 Adventurer 0 Explorer 3 Win Type - Total 3 Types 2/0/0/1/0/0/0/0/0 Lore% 44 Gallery% 65 Achievement% 48 Wizard Run 0 Options --------- ASCII 0 Keyboard 0 Movement Numpad Keybinds 0 Fullscreen 1 Font 18/SmallcapsGlow Map View 76x50 Tactical HUD 1 Map Filters NONE Filters NONE Steam 1 RUN: d4224de7-7a64-4968-ae6e-d9ec11e5e23b